Cogmind - Beta 13 @@@ ROGUE MODE // 2024.04.02 @ 13:00:01 Player: DiscountHorde Result: Destroyed by G-34 Mercenary with Small Laser Performance ------------- Evolutions (1) 500 Regions Visited (4) 800 Robots Destroyed (58) 290 Value Destroyed (1687) 1687 Prototype IDs (4) 80 Alien Tech Used (0) 0 Bonus (-46) -46 TOTAL SCORE: 3311 Bonus ------- High Alert Combat Kills 85 Friendly Fire -131 Cogmind --------- Core Integrity 0/400 Matter 202/500 Energy 250/250 System Corruption 1% Temperature Cool (36) Movement Walking (260) Ox2 Location -9/Storage Parts ------- > --- POWER (2) -------- Ion Engine > --- PROPULSION (2) --- Aluminum Leg Improved Aluminum Leg > --- UTILITY (2) ------ High-capacity Storage Unit High-capacity Matter Pod > --- WEAPON (3) ------- Small Laser Heavy Assault Rifle Mini Grenade Launcher > --- INVENTORY (20) --- Aluminum Leg Improved Heat Sink Terrain Scanner Hardened Light Armor Plating Heavy Assault Rifle Peak State ------------ > --- POWER ------------ Improved Ion Engine Cooled Ion Engine > --- PROPULSION ------- Light Treads Light Treads > --- UTILITY ---------- Large Storage Unit Drone Bay > --- WEAPON ----------- Beam Rifle Advanced Beam Cannon Mini Grenade Launcher > --- INVENTORY -------- Light Treads Light Treads Improved Heat Sink High-capacity Storage Unit High-capacity Matter Pod Terrain Scanner Light Armor Plating Hardened Light Armor Plating Drone Bay Drone Bay Drone Bay Mini Grenade Launcher Mini Grenade Launcher [Rating: 23] Favorites ----------- Power Ion Engine Engine Ion Engine Power Core Light Nuclear Core Propulsion Aluminum Leg Treads Light Treads Leg Aluminum Leg Flight Unit Improved Flight Unit Utility Large Storage Unit Device Structural Scanner Storage Large Storage Unit Protection Hardened Light Armor Plating Weapon Grenade Launcher Energy Gun Beam Rifle Energy Cannon Advanced Beam Cannon Ballistic Gun Assault Rifle Launcher Grenade Launcher Special Weapon Plasma Cutter Slashing Weapon Mining Claw Build | -11 -10 -10 -9 -9 ------- Run | Yrd Mat Min Mat Sto Slots Evolved 2 | . . . 2 . Power 1 | . . . 1 . Propulsion . | . . . . . Utility . | . . . . . Weapon 1 | . . . 1 . Parts Attached 59 | 6 12 4 . 37 Power 7 | 1 1 1 . 4 Engine 6 | 1 . 1 . 4 Core 1 | . 1 . . . Reactor . | . . . . . Propulsion 15 | 2 2 1 . 10 Treads 7 | . . . . 7 Leg 7 | 2 2 1 . 2 Wheel . | . . . . . Hover . | . . . . . Flight 1 | . . . . 1 Utility 15 | . 3 1 . 11 Device 9 | . 2 1 . 6 Storage 5 | . 1 . . 4 Processor . | . . . . . Hackware . | . . . . . Protection 1 | . . . . 1 Artifact . | . . . . . Weapon 22 | 3 6 1 . 12 Energy Gun 6 | 2 2 . . 2 Energy Cannon 3 | . 1 . . 2 Ballistic Gun 3 | 1 . . . 2 Ballistic Cannon . | . . . . . Launcher 7 | . 2 1 . 4 Special Weapon 2 | . . . . 2 Impact Weapon . | . . . . . Slashing Weapon 1 | . 1 . . . Piercing Weapon . | . . . . . Special Melee Weapon . | . . . . . Unidentified Prototypes 2 | . . . . 2 Parts Lost 18 | . 2 1 . 15 Power 6 | . 1 1 . 4 Propulsion 5 | . 1 . . 4 Utility . | . . . . . Weapon 7 | . . . . 7 Highest Loss Streak 8 | . 1 1 . 8 To Critical Strikes . | . . . . . Average Slot Usage (%) 91 | . 91 99 77 88 Engine 11 | . 2 10 11 17 Core 3 | . 10 3 . . Treads 6 | . . . . 12 Leg 16 | . 26 28 22 7 Device 9 | . 8 14 11 7 Storage 13 | . 13 14 11 12 Energy Gun 4 | . 3 . . 6 Energy Cannon 6 | . 1 . . 12 Ballistic Gun 2 | . 5 . . 2 Launcher 13 | . 16 28 22 7 Special Weapon 1 | . . . . 1 Naked Turns . | . . . . . Heaviest Build 84 | 7 32 32 31 84 Greatest Support 40 | 20 20 20 20 40 Greatest Overweight (x) 15 | . 3 1 1 15 Average Overweight (x) 1 | . 1 1 1 1 Largest Inventory Capacity 20 | 5 15 15 15 20 Average Capacity 15 | 5 14 15 15 16 Most Carried 15 | 2 10 8 8 15 Average Carried 8 | . 6 7 7 9 Final Capacity 20 | 5 15 15 15 20 Final Carried 8 | 1 7 7 8 5 Class Distribution -------------------- 48% | Mutant 21% | Scavenger-Bomber 12% | Scavenger-Mutant 10% | Scavenger-Skirmisher 5% | Bomber Dominant Class ---------------- Mutant | -10/Materials Mutant | -10/Mines Mutant | -9/Materials Scavenger-Bomber | -9/Storage Resources | -11 -10 -10 -9 -9 ----------- Run | Yrd Mat Min Mat Sto Matter Collected 1280 | 258 172 60 . 790 Remotely . | . . . . . Salvage Created 1505 | 50 217 162 . 1076 Parts 113 | 2 20 17 . 74 Haulers Intercepted 1 | . . . . 1 Recyclers Shooed 1 | . . . . 1 Parts Field Recycled . | . . . . . Retrieved Matter . | . . . . . Parts Self-Destructed . | . . . . . Prevented . | . . . . . Kills | -11 -10 -10 -9 -9 ------- Run | Yrd Mat Min Mat Sto Combat Hostiles Destroyed 42 | 1 7 5 . 29 Guns 12 | 1 6 . . 5 Cannons 10 | . . . . 10 AOE 20 | . 1 5 . 14 Classes Destroyed 13 | 2 3 1 . 7 Worker 3 | 1 . . . 2 Builder 6 | . 1 2 . 3 Tunneler 1 | . . . . 1 Hauler 1 | . . . . 1 Recycler 2 | . . 1 . 1 Mechanic 1 | . . . . 1 Drone 1 | . . . . 1 Watcher 2 | . 1 . . 1 Swarmer 10 | . 3 3 . 4 Grunt 18 | 1 4 2 . 11 Duelist 2 | . . . . 2 Protector 1 | . . . . 1 Sentry 11 | . . . . 11 Best Kill Streak 8 | 1 3 4 . 8 Combat Bots Only 5 | 1 3 3 . 5 Max Kills in Single Turn 4 | 1 1 3 . 4 Gunslinging . | . . . . . Exploded 3 | . 1 3 . 2 Melee . | . . . . . Uniques/NPCs Destroyed . | . . . . . Combat | -11 -10 -10 -9 -9 -------- Run | Yrd Mat Min Mat Sto Hostile Shots Fired 230 | 6 46 10 8 160 Missed 67 | 1 10 5 1 50 Damage Taken 2792 | 53 402 173 103 2061 Core 516 | 21 74 19 14 388 Absorbed by Shields . | . . . . . Core Remaining (%) 72 | 91 . 54 . . Volleys Fired 100 | 5 26 6 . 63 Largest 3 | 2 2 2 . 3 Hottest 184 | 70 80 60 . 184 Shots Fired 186 | 10 42 12 . 122 Gun 68 | 10 32 . . 26 Cannon 56 | . 4 . . 52 Launcher 55 | . 6 12 . 37 Special 7 | . . . . 7 Kinetic 28 | 5 13 . . 10 Thermal 103 | 5 23 . . 75 Explosive 55 | . 6 12 . 37 Electromagnetic . | . . . . . Robot Hit Streak 14 | 5 14 2 . 8 Robot Miss Streak 5 | 3 3 2 . 5 Penetration Max . | . . . . . Secondary Targets 2 | . 2 . . . Max Gunslinging Chain 1 | . 1 . . . Shots Hit Robots 110 | 6 28 4 . 72 Core Hits 88 | 3 13 11 . 61 Critical Kills . | . . . . . Critical Parts Destroyed 1 | . 1 . . . Critical Strikes 4 | . 3 . . 1 Burn 2 | . 2 . . . Destroy 1 | . 1 . . . Sever 1 | . . . . 1 Melee Attacks . | . . . . . Impact . | . . . . . Slashing . | . . . . . Piercing . | . . . . . Sneak Attacks . | . . . . . Combat Hostiles . | . . . . . Follow-up Attacks . | . . . . . Damage Inflicted 3490 | 76 476 420 . 2518 Guns 582 | 76 268 . . 238 Cannons 684 | . 71 . . 613 Explosions 2186 | . 137 420 . 1629 Melee . | . . . . . Ramming 5 | . . . . 5 Kinetic 243 | 51 116 . . 76 Thermal 1160 | 25 223 104 . 808 Explosive 2082 | . 137 316 . 1629 Electromagnetic . | . . . . . Impact . | . . . . . Slashing . | . . . . . Piercing . | . . . . . Highest Corruption 1 | . . . . 1 Average Corruption 1 | . . . . 1 Corruption Purged . | . . . . . Corruption Blocked . | . . . . . Effects 12 | . . . . 12 Message Errors 5 | . . . . 5 Matter Fused 2 | . . . . 2 Heat Flow Errors 1 | . . . . 1 Parts Fused 1 | . . . . 1 Data Loss (minor) 3 | . . . . 3 Overload Shots . | . . . . . Overflow Damage 45 | . 4 6 . 35 Projectiles 12 | . . . . 12 Explosions 33 | . 4 6 . 23 Melee . | . . . . . Knockbacks . | . . . . . Impact . | . . . . . Kinetic . | . . . . . Secondary . | . . . . . Self-Inflicted Damage 633 | . 23 116 . 494 Shots 19 | . 2 3 . 14 Rammed 3 | . . . . 3 Targets Rammed 4 | . . . . 4 Kicked 1 | . . . . 1 Crushed . | . . . . . Highest Temperature 536 | 60 125 27 . 536 Average Temperature 146 | 34 97 18 . 167 Received Heat Transfer 888 | 30 156 27 27 648 Effects 9 | . . . . 9 Shutdowns 2 | . . . . 2 Energy Bleed 1 | . . . . 1 Interference 5 | . . . . 5 Matter Decay 1 | . . . . 1 Siege Activations . | . . . . . Robots Corrupted . | . . . . . Combat Hostiles . | . . . . . Parts Fried . | . . . . . Impact Corruptions . | . . . . . Robots Melted . | . . . . . Combat Hostiles . | . . . . . Parts Melted 3 | . 2 . . 1 Heat Transferred 2579 | 74 740 100 . 1665 Parts Sabotaged . | . . . . . Parts Stolen . | . . . . . Parts Stripped . | . . . . . Power Chain Reactions . | . . . . . Alert | -11 -10 -10 -9 -9 ------- Run | Yrd Mat Min Mat Sto Peak Influence 658 | 25 171 166 79 658 Initial 64 | . 16 . 64 33 Average 161 | 4 41 92 66 257 Maximum Alert Level 2 | . . . . 2 Low Security (%) 74 | 100 100 100 100 49 Level 1 14 | . . . . 27 Level 2 11 | . . . . 22 Level 3 . | . . . . . Level 4 . | . . . . . Level 5 . | . . . . . High Security . | . . . . . Max Security . | . . . . . Squads Dispatched 9 | . 2 . . 7 Investigation 3 | . 2 . . 1 Extermination . | . . . . . Reinforcement 4 | . . . . 4 Assault 1 | . . . . 1 Garrison 1 | . . . . 1 Intercept . | . . . . . Searches Triggered . | . . . . . Construction Impeded 2 | . . . . 2 Haulers Reinforced . | . . . . . Active Scanning Responses . | . . . . . Cargo Convoy Interrupts . | . . . . . Stealth | -11 -10 -10 -9 -9 --------- Run | Yrd Mat Min Mat Sto Distress Signals 1 | . . . . 1 Communications Jammed . | . . . . . Distress Signals . | . . . . . Times Spotted 50 | 1 9 4 1 35 Peak Tracking Total 5 | 1 3 3 1 5 Tactical Retreats . | . . . . . Traps | -11 -10 -10 -9 -9 ------- Run | Yrd Mat Min Mat Sto Traps Triggered 3 | . 1 . . 2 Indirectly . | . . . . . Trap Hack Attempts . | . . . . . Triggered . | . . . . . Disarmed . | . . . . . Reprogrammed . | . . . . . Reused . | . . . . . Traps Extracted . | . . . . . Installed . | . . . . . Triggered . | . . . . . Machines | -11 -10 -10 -9 -9 ---------- Run | Yrd Mat Min Mat Sto Machines Disabled 12 | . . 5 . 7 Max in Single Turn 4 | . . 4 . 1 Garrison Access 1 | . . . . 1 Machines Repaired . | . . . . . Machines Dismantled 1 | . . . . 1 Machines Sabotaged . | . . . . . Overloaded Fab Kills . | . . . . . Hacking | -11 -10 -10 -9 -9 --------- Run | Yrd Mat Min Mat Sto Machines Accessed 8 | . 4 . . 4 Terminals 7 | . 3 . . 4 Fabricators . | . . . . . Repair Stations . | . . . . . Recycling Units 1 | . 1 . . . Scanalyzers . | . . . . . Garrison Access . | . . . . . Total Hacks 19 | . 8 . . 11 Successful 12 | . 6 . . 6 Failed 7 | . 2 . . 5 Catastrophic 1 | . . . . 1 Database Lockouts . | . . . . . Manual . | . . . . . Terminals 15 | . 4 . . 11 Fabricators . | . . . . . Repair Stations . | . . . . . Recycling Units 4 | . 4 . . . Scanalyzers . | . . . . . Garrison Access . | . . . . . Terminal Hacks 9 | . 3 . . 6 Record 3 | . . . . 3 Robot Analysis 1 | . 1 . . . Prototype ID Bank 1 | . 1 . . . Open Door 1 | . . . . 1 Alert Level 1 | . . . . 1 Locate Traps 1 | . 1 . . . Reinforcement Status 1 | . . . . 1 Fabricator Hacks . | . . . . . Repair Station Hacks . | . . . . . Recycling Unit Hacks 3 | . 3 . . . Process 1 | . 1 . . . Report Inventory 1 | . 1 . . . Retrieve Components 1 | . 1 . . . Scanalyzer . | . . . . . Garrison Access Hacks . | . . . . . Unauthorized Hacks . | . . . . . Terminals . | . . . . . Fabricators . | . . . . . Repair Stations . | . . . . . Recycling Units . | . . . . . Scanalyzers . | . . . . . Garrison Access . | . . . . . Data Cores Recovered . | . . . . . Used . | . . . . . Hacking Detections 6 | . 4 . . 2 Full Trace Events 2 | . 1 . . 1 Feedback Events . | . . . . . Feedback Blocked . | . . . . . Robot Schematics Acquired . | . . . . . Robots Built . | . . . . . Authchips . | . . . . . Time . | . . . . . Total Robot Build Rating . | . . . . . Part Schematics Acquired . | . . . . . Parts Built . | . . . . . Authchips . | . . . . . Time . | . . . . . Total Part Build Rating . | . . . . . Parts Repaired . | . . . . . Time . | . . . . . Parts Recycled . | . . . . . Recycled Matter . | . . . . . Retrieved Matter . | . . . . . Retrieved Components 3 | . 3 . . . Parts Scanalyzed . | . . . . . Part Schematics Acquired . | . . . . . Parts Damaged . | . . . . . Bothacking | -11 -10 -10 -9 -9 ------------ Run | Yrd Mat Min Mat Sto Used RIF Installer . | . . . . . Robots Hacked . | . . . . . Non-combat . | . . . . . Combat . | . . . . . Robot Hacks Applied . | . . . . . Relay Couplers Released 1 | . . . . 1 Machine Destruction 1 | . . . . 1 Fabnet Peak Effective % . | . . . . . Robots Rewired . | . . . . . Allies Hacked . | . . . . . Hacks Repelled . | . . . . . Allies | -11 -10 -10 -9 -9 -------- Run | Yrd Mat Min Mat Sto Total Allies . | . . . . . Largest Group . | . . . . . Highest-Rated Group . | . . . . . Highest-Rated Ally . | . . . . . Total Orders . | . . . . . Ally Attacks . | . . . . . Total Damage . | . . . . . Kills . | . . . . . Allies Corrupted . | . . . . . Allies Melted . | . . . . . Intel | -11 -10 -10 -9 -9 ------- Run | Yrd Mat Min Mat Sto Robot Analysis Total 1 | . 1 . . . Derelict Logs Recovered 1 | . . 1 . . Drone Launches 6 | . . . . 6 Drone Recoveries . | . . . . . Exploration | -11 -10 -10 -9 -9 ------------- Run | Yrd Mat Min Mat Sto Turns Passed 3742 | 118 944 674 81 1925 Spaces Moved 1569 | 90 426 341 43 669 Core 33 | 25 . . . 8 Treads 416 | . . . . 416 Legs 1120 | 65 426 341 43 245 Wheels . | . . . . . Hover . | . . . . . Flight . | . . . . . Fastest Speed 50 | 50 120 190 190 120 Average Speed 209 | 100 198 190 190 241 Slowest Speed 800 | 120 330 190 190 800 Overloaded Moves . | . . . . . Propulsion Burnouts . | . . . . . Robots Hopped . | . . . . . Cave-ins Triggered . | . . . . . Exploration Rate (%) 38 | 7 44 66 6 69 Regions Visited 4 Branch Regions 2 Pre-discovered Areas . | . . . . . Known Exits Taken 1 | . . . 1 . Unknown Exits Taken 3 | 1 1 1 . . Scrap Searched 1 | . . 1 . . Spaces Dug . | . . . . . Terrain Destroyed 264 | . 15 93 . 156 Melee . | . . . . . Projectile 1 | . . . . 1 AOE 263 | . 15 93 . 155 Terrain Rammed . | . . . . . Walls Destroyed . | . . . . . Machines Disabled . | . . . . . Actions | -11 -10 -10 -9 -9 --------- Run | Yrd Mat Min Mat Sto Total 1832 | 108 481 355 43 845 Wait 2 | . . . . 2 Move 1565 | 89 425 340 42 669 Hop . | . . . . . Pick Up 63 | 7 14 3 1 38 Fast Attach . | . . . . . Attach 35 | 6 4 1 . 24 Detach . | . . . . . Swap 24 | . 8 3 . 13 Drop 28 | 1 4 2 . 21 Fire 100 | 5 26 6 . 63 Melee . | . . . . . Ram . | . . . . . Kick 1 | . . . . 1 Crush 3 | . . . . 3 Escape Stasis . | . . . . . Rewire 4 | . . . . 4 Trap . | . . . . . Miscellaneous 7 | . . . . 7 Route ------- -11/Scrapyard -10/Materials (discovered 2 exits: [*Mat] / [*Min]) -10/Mines (discovered 2 exits: [*Mat x2]) -9/Materials (discovered 2 exits: *Sto x2) -9/Storage History --------- Turn | Location | Event 2 | -11/Scrapyard | Met Revision 17 93 | -11/Scrapyard | Discovered new exit (range 8) 119 | -11/Scrapyard | Entered Materials 316 | -10/Materials | Build established: Mutant 523 | -10/Materials | Discovered new exit (range 15) 635 | -10/Materials | Discovered new exit (range 16) 1063 | -10/Materials | Entered Mines 1438 | -10/Mines | Discovered new exit (range 7) 1450 | -10/Mines | Discovered new exit (range 14) 1528 | -10/Mines | Build established: Scavenger-Mutant 1624 | -10/Mines | Received a Rocket Launcher from a helpful Derelict 1737 | -10/Mines | Entered Materials 1737 | -9/Materials | Evolved 2 slots: Power x1, Weapon x1 1738 | -9/Materials | Identified exit to Storage 1782 | -9/Materials | Discovered exit to Storage (range 15) 1818 | -9/Materials | Entered Storage 1838 | -9/Storage | Build established: Mutant 2082 | -9/Storage | Lost 3 parts (1p2w) 2972 | -9/Storage | Build established: Scavenger-Bomber 3313 | -9/Storage | Core integrity fell below 50% 3360 | -9/Storage | Core integrity fell below 20% 3396 | -9/Storage | Lost 8 parts (1p4n3w) 3743 | -9/Storage | Destroyed by G-34 Mercenary with Small Laser Last Messages --------------- K-01 Serf collects debris. R-06 Scavenger collects Drone Bay. R-06 Scavenger collects Lrg. Storage Unit. Acquired Hvy. Assault Rifle. U-05 Engineer lays Concrete. U-05 Engineer builds a Wall. U-05 Engineer lays Concrete. Acquired Hvy. Assault Rifle. Dropped Aluminum Leg. Dropped Lgt. Treads. Acquired 28 matter. Dropped Heat Sink. Acquired Hcp. Storage Unit. U-05 Engineer builds a Wall. U-05 Engineer lays Concrete. Acquired 34 matter. U-05 Engineer lays Concrete. Connecting with Terminal... PMF7T|XKLGTKF >ZKJ0 4<